[Event "2nd Colonial Open 2021"]
[Site "Sterling"]
[Date "2021.04.03"]
[Round "2.1"]
[White "Prasanna Raghuram Rao"]
[Black "Zaloznyy, Mike"]
[Result "1-0"]
[ECO "A50"]
[WhiteElo "2435"]
[BlackElo "1996"]
[Annotator "ChessBase"]
[PlyCount "29"]
[EventDate "2021.04.02"]
[EventType "swiss"]
[EventCountry "USA"]
[SourceTitle "playchess.com"]
[Source "ChessBase"]
[SourceQuality "1"]
[TimeControl "7200+30"]

1. d4 {[%emt 0:00:19]} Nf6 {[%emt 0:00:17]} 2. c4 {[%emt 0:00:06]} b6 {[%emt 0:00:40]} 3. Nc3 {[%emt 0:02:10]} Bb7 {[%emt 0:00:13]} 4. Qc2 {[%emt 0:00:09]} d5 {[%emt 0:00:29]} 5. Nf3 {[%emt 0:05:54]} e6 {[%emt 0:00:31]} 6. Bg5 {[%emt 0:16:00]} Bb4 {[%emt 0:03:48]} 7. Qa4+ {[%emt 0:08:09]} Nc6 {[%emt 0:00:22]} 8. Bxf6 {[%emt 0:13:20]} Qxf6 {[%emt 0:08:01]} 9. Ne5 {[%emt 0:02:39]} Qd8 {[%emt 0:08:47]} 10. Rc1 {[%emt 0:03:04]} Qd6 {[%emt 0:32:49]} 11. cxd5 {[%emt 0:00:06]} exd5 {[%emt 0:02:17]} 12. a3 {[%emt 0:00:05]} Bc5 {[%emt 0:04:52]} 13. e3 {[%emt 0:11:11]} f6 {[%emt 0:03:34]} 14. Nxc6 {[%emt 0:00:33]} Bxc6 {[%emt 0:00:04]} 15. Bb5 {[%emt 0:03:32]} 1-0

[Event "2nd Colonial Open 2021"]
[Site "Sterling"]
[Date "2021.04.03"]
[Round "2.2"]
[White "Lu, Jason"]
[Black "Liang, Jason"]
[Result "0-1"]
[ECO "B11"]
[WhiteElo "2068"]
[BlackElo "2351"]
[Annotator "ChessBase"]
[PlyCount "116"]
[EventDate "2021.04.02"]
[EventType "swiss"]
[EventCountry "USA"]
[SourceTitle "playchess.com"]
[Source "ChessBase"]
[SourceQuality "1"]
[TimeControl "7200+30"]

1. e4 {[%emt 0:00:00]} c6 {[%emt 0:00:00]} 2. Nf3 {[%emt 0:00:00]} d5 {[%emt 0:00:00]} 3. Nc3 {[%emt 0:00:00]} Bg4 {[%emt 0:00:00]} 4. h3 {[%emt 0:00:00]} Bxf3 {[%emt 0:00:05]} 5. Qxf3 {[%emt 0:00:04]} e6 {[%emt 0:00:11]} 6. Be2 {[%emt 0:00:23]} Bc5 {[%emt 0:00:15]} 7. O-O {[%emt 0:00:19]} Nd7 {[%emt 0:00:18]} 8. b4 {[%emt 0:00:21]} Bd4 {[%emt 0:00:10]} 9. Qd3 {[%emt 0:00:08]} Bf6 {[%emt 0:22:03]} 10. Rb1 {[%emt 0:00:29]} Ne7 {[%emt 0:09:37]} 11. f4 {[%emt 0:00:16]} Bxc3 {[%emt 0:04:58]} 12. dxc3 {[%emt 0:00:17]} Nf6 {[%emt 0:02:18]} 13. e5 {[%emt 0:04:49]} Ne4 {[%emt 0:00:15]} 14. Bf3 {[%emt 0:11:07]} Nf5 {[%emt 0:03:28]} 15. Bxe4 {[%emt 0:22:46]} dxe4 {[%emt 0:00:29]} 16. Qxd8+ {[%emt 0:00:08]} Rxd8 {[%emt 0:00:07]} 17. Kf2 {[%emt 0:00:33]} f6 {[%emt 0:10:08]} 18. Re1 {[%emt 0:05:53]} e3+ {[%emt 0:12:02]} 19. Bxe3 {[%emt 0:00:53]} fxe5 {[%emt 0:00:21]} 20. Rbd1 {[%emt 0:10:43]} Rxd1 {[%emt 0:04:38]} 21. Rxd1 {[%emt 0:00:07]} Nxe3 {[%emt 0:00:18]} 22. Kxe3 {[%emt 0:00:02]} exf4+ {[%emt 0:00:13]} 23. Kxf4 {[%emt 0:00:02]} Ke7 {[%emt 0:00:14]} 24. c4 {[%emt 0:16:15]} Rf8+ {[%emt 0:00:46]} 25. Ke3 {[%emt 0:01:07]} Rf5 {[%emt 0:00:31]} 26. c5 {[%emt 0:05:36]} Re5+ {[%emt 0:00:13]} 27. Kf3 {[%emt 0:01:09]} Rf5+ {[%emt 0:07:08]} 28. Ke3 {[%emt 0:00:36]} g5 {[%emt 0:01:22]} 29. c3 {[%emt 0:04:39]} Rf4 {[%emt 0:02:00]} 30. Rd4 {[%emt 0:05:42]} Rf1 {[%emt 0:02:37]} 31. h4 {[%emt 0:03:44]} h6 {[%emt 0:06:45]} 32. hxg5 {[%emt 0:01:25]} hxg5 {[%emt 0:00:10]} 33. Rg4 {[%emt 0:00:20]} Kf6 {[%emt 0:02:03]} 34. Rd4 {[%emt 0:00:33]} Rc1 {[%emt 0:11:48]} 35. Rd7 {[%emt 0:05:51]} Rxc3+ {[%emt 0:00:30]} 36. Kd4 {[%emt 0:00:09]} Rc2 {[%emt 0:00:29]} 37. Rxb7 {[%emt 0:00:12]} Rxa2 {[%emt 0:00:06]} 38. Rc7 {[%emt 0:02:35]} Ra4 {[%emt 0:05:22]} 39. Kc3 {[%emt 0:01:20]} Ra6 {[%emt 0:01:23]} 40. Kd4 {[%emt 0:02:08]} g4 {[%emt 0:01:17]} 41. g3 {[%emt 0:03:10]} Ra4 {[%emt 0:01:22]} 42. Kc3 {[%emt 0:00:38]} a5 {[%emt 0:03:35]} 43. bxa5 {[%emt 0:00:40]} Rxa5 {[%emt 0:00:18]} 44. Rxc6 {[%emt 0:00:18]} Ra3+ {[%emt 0:04:23]} 45. Kd4 {[%emt 0:00:08]} Rxg3 {[%emt 0:00:07]} 46. Rc8 {[%emt 0:00:06]} Rg1 {[%emt 0:00:27]} 47. Rg8 {[%emt 0:00:52]} Kf5 {[%emt 0:01:01]} 48. Rf8+ {[%emt 0:05:14]} Kg5 {[%emt 0:00:59]} 49. Re8 Rd1+ {[%emt 0:00:30]} 50. Ke4 {[%emt 0:04:04]} Re1+ {[%emt 0:00:54]} 51. Kd3 {[%emt 0:01:15]} g3 {[%emt 0:02:04]} 52. Kd2 {[%emt 0:01:23]} Re5 {[%emt 0:01:48]} 53. c6 {[%emt 0:00:18]} Rc5 {[%emt 0:00:08]} 54. Rxe6 {[%emt 0:01:42]} g2 {[%emt 0:00:10]} 55. Re1 {[%emt 0:01:38]} Kf4 {[%emt 0:00:15]} 56. Rb1 {[%emt 0:02:06]} Kf3 {[%emt 0:01:03]} 57. c7 {[%emt 0:00:24]} Rxc7 {[%emt 0:00:09]} 58. Rf1+ {[%emt 0:03:10]} gxf1=R {[%emt 0:00:29]} 0-1

[Event "2nd Colonial Open 2021"]
[Site "Sterling"]
[Date "2021.04.03"]
[Round "2.3"]
[White "Zhurbinsky, David"]
[Black "Chiu, Isaac"]
[Result "0-1"]
[ECO "A42"]
[WhiteElo "1823"]
[BlackElo "2195"]
[Annotator "ChessBase"]
[PlyCount "100"]
[EventDate "2021.04.02"]
[EventType "swiss"]
[EventCountry "USA"]
[SourceTitle "playchess.com"]
[Source "ChessBase"]
[SourceQuality "1"]
[TimeControl "7200+30"]

1. e4 {[%emt 0:00:00]} g6 {[%emt 0:00:00]} 2. d4 {[%emt 0:00:00]} Bg7 {[%emt 0:00:00]} 3. c4 {[%emt 0:00:00]} d6 {[%emt 0:00:00]} 4. Nc3 {[%emt 0:00:54]} e5 {[%emt 0:00:00]} 5. Be3 {[%emt 0:01:29]} exd4 {[%emt 0:00:13]} 6. Bxd4 {[%emt 0:00:11]} Nf6 {[%emt 0:00:03]} 7. Nf3 {[%emt 0:02:02]} O-O {[%emt 0:02:54]} 8. Be2 {[%emt 0:03:03]} Re8 {[%emt 0:06:03]} 9. e5 {[%emt 0:08:43]} dxe5 {[%emt 0:01:24]} 10. Bxe5 {[%emt 0:00:52]} c6 {[%emt 0:13:55]} 11. O-O {[%emt 0:05:36]} Bf5 {[%emt 0:06:04]} 12. Qb3 {[%emt 0:05:21]} Qb6 {[%emt 0:20:16]} 13. Bd4 {[%emt 0:06:46]} Qxb3 {[%emt 0:13:35]} 14. axb3 {[%emt 0:00:07]} Na6 {[%emt 0:00:02]} 15. Ra4 {[%emt 0:06:56]} c5 {[%emt 0:05:02]} 16. Bxf6 {[%emt 0:11:48]} Bxf6 {[%emt 0:00:02]} 17. Re1 {[%emt 0:01:21]} Nb4 {[%emt 0:02:17]} 18. Bf1 {[%emt 0:05:13]} Rxe1 {[%emt 0:03:16]} 19. Nxe1 {[%emt 0:00:06]} a6 {[%emt 0:00:29]} 20. Ra1 {[%emt 0:04:59]} Rd8 {[%emt 0:03:26]} 21. Rd1 {[%emt 0:08:35]} Rxd1 {[%emt 0:08:04]} 22. Nxd1 {[%emt 0:00:05]} Nc2 {[%emt 0:01:26]} 23. Nd3 {[%emt 0:05:35]} Bd4 {[%emt 0:12:43]} 24. Nc3 {[%emt 0:03:31]} Na1 {[%emt 0:01:29]} 25. b4 {[%emt 0:07:06]} Bxd3 {[%emt 0:00:29]} 26. Bxd3 {[%emt 0:00:05]} cxb4 {[%emt 0:00:03]} 27. Na4 {[%emt 0:01:07]} Nb3 {[%emt 0:03:35]} 28. Bc2 {[%emt 0:05:20]} Nd2 {[%emt 0:02:39]} 29. c5 {[%emt 0:03:07]} f5 {[%emt 0:00:18]} 30. Bd3 {[%emt 0:02:56]} Kf7 {[%emt 0:03:02]} 31. c6 {[%emt 0:10:30]} bxc6 {[%emt 0:00:07]} 32. Bxa6 {[%emt 0:00:16]} Ke7 {[%emt 0:00:48]} 33. Bd3 {[%emt 0:05:58]} Kd6 {[%emt 0:00:43]} 34. h4 {[%emt 0:01:02]} Ba7 {[%emt 0:01:08]} 35. h5 {[%emt 0:01:15]} Kd5 {[%emt 0:00:52]} 36. hxg6 {[%emt 0:02:12]} hxg6 {[%emt 0:00:01]} 37. g4 {[%emt 0:02:29]} fxg4 {[%emt 0:00:13]} 38. Kg2 {[%emt 0:00:35]} Nf3 {[%emt 0:00:53]} 39. Be2 {[%emt 0:02:43]} Ne5 {[%emt 0:01:11]} 40. Kg3 {[%emt 0:02:38]} Bd4 {[%emt 0:00:27]} 41. Bd1 {[%emt 0:01:06]} Kc4 {[%emt 0:06:02]} 42. Be2+ {[%emt 0:01:26]} Kb3 {[%emt 0:01:34]} 43. Bd1+ {[%emt 0:00:03]} Ka2 {[%emt 0:00:01]} 44. b3 {[%emt 0:03:12]} Kb1 {[%emt 0:01:22]} 45. Be2 {[%emt 0:00:55]} g5 {[%emt 0:00:58]} 46. Bc4 {[%emt 0:01:41]} Nxc4 {[%emt 0:00:34]} 47. bxc4 {[%emt 0:00:04]} Kc2 {[%emt 0:00:22]} 48. c5 {[%emt 0:00:54]} b3 {[%emt 0:00:11]} 49. Kxg4 {[%emt 0:00:16]} b2 {[%emt 0:00:12]} 50. Nxb2 {[%emt 0:00:05]} Kxb2 {[%emt 0:00:05]} 0-1

[Event "2nd Colonial Open 2021"]
[Site "Sterling"]
[Date "2021.04.03"]
[Round "2.4"]
[White "Park, Evan"]
[Black "Altman, Joshua"]
[Result "1/2-1/2"]
[ECO "A29"]
[WhiteElo "2208"]
[BlackElo "1926"]
[Annotator "ChessBase"]
[PlyCount "100"]
[EventDate "2021.04.02"]
[EventType "swiss"]
[EventCountry "USA"]
[SourceTitle "playchess.com"]
[Source "ChessBase"]
[SourceQuality "1"]
[TimeControl "7200+30"]

1. c4 {[%emt 0:00:16]} e5 {[%emt 0:00:03]} 2. g3 {[%emt 0:01:22]} Nc6 {[%emt 0:00:05]} 3. Bg2 {[%emt 0:00:21]} Bc5 {[%emt 0:00:46]} 4. Nc3 {[%emt 0:01:57]} Nf6 {[%emt 0:00:12]} 5. Nf3 {[%emt 0:06:04]} d6 {[%emt 0:01:19]} 6. O-O {[%emt 0:03:19]} O-O {[%emt 0:00:51]} 7. e3 {[%emt 0:02:56]} h6 {[%emt 0:07:55]} 8. d3 {[%emt 0:04:09]} a6 {[%emt 0:02:37]} 9. a3 {[%emt 0:02:00]} Rb8 {[%emt 0:02:54]} 10. Nd5 {[%emt 0:04:11]} Ba7 {[%emt 0:09:07]} 11. b4 {[%emt 0:03:49]} Nh7 {[%emt 0:24:14]} 12. Bb2 {[%emt 0:18:10]} Ne7 {[%emt 0:15:51]} 13. Nxe7+ {[%emt 0:13:05]} Qxe7 {[%emt 0:00:02]} 14. c5 {[%emt 0:03:36]} Bg4 {[%emt 0:10:50]} 15. Qb3 {[%emt 0:09:47]} Qe6 {[%emt 0:29:14]} 16. Qc3 {[%emt 0:03:32]} Bh3 {[%emt 0:06:21]} 17. Qc4 {[%emt 0:09:13]} Qxc4 {[%emt 0:09:19]} 18. dxc4 {[%emt 0:00:05]} Bxg2 {[%emt 0:00:06]} 19. Kxg2 {[%emt 0:00:06]} f6 {[%emt 0:04:44]} 20. cxd6 {[%emt 0:01:06]} cxd6 {[%emt 0:00:01]} 21. Rfd1 {[%emt 0:00:11]} Rfd8 {[%emt 0:00:16]} 22. Nh4 {[%emt 0:02:24]} Rbc8 {[%emt 0:00:42]} 23. Rac1 {[%emt 0:00:39]} Kf7 {[%emt 0:01:39]} 24. Nf5 {[%emt 0:00:27]} Bb8 {[%emt 0:00:22]} 25. e4 {[%emt 0:04:22]} Ng5 {[%emt 0:00:39]} 26. f3 {[%emt 0:00:34]} Ne6 {[%emt 0:01:16]} 27. a4 {[%emt 0:02:12]} h5 {[%emt 0:00:55]} 28. Ne3 {[%emt 0:02:03]} Ba7 {[%emt 0:00:43]} 29. Nd5 {[%emt 0:00:05]} Bd4 {[%emt 0:00:28]} 30. Ba3 {[%emt 0:02:16]} Nc7 {[%emt 0:00:14]} 31. Kf1 {[%emt 0:04:49]} Nxd5 {[%emt 0:00:17]} 32. cxd5 {[%emt 0:00:12]} Ke7 {[%emt 0:00:34]} 33. Ke2 {[%emt 0:00:15]} Kd7 {[%emt 0:00:21]} 34. Rxc8 {[%emt 0:03:12]} Rxc8 {[%emt 0:00:02]} 35. Rc1 {[%emt 0:00:09]} Rxc1 {[%emt 0:01:51]} 36. Bxc1 {[%emt 0:00:05]} b5 {[%emt 0:00:12]} 37. axb5 {[%emt 0:00:14]} axb5 {[%emt 0:00:03]} 38. Bd2 {[%emt 0:00:24]} g5 {[%emt 0:01:10]} 39. h3 {[%emt 0:01:09]} Ke7 {[%emt 0:00:28]} 40. Kd3 {[%emt 0:02:34]} Bf2 {[%emt 0:00:22]} 41. f4 {[%emt 0:01:47]} Bxg3 {[%emt 0:00:14]} 42. fxg5 {[%emt 0:00:10]} fxg5 {[%emt 0:00:05]} 43. Bxg5+ {[%emt 0:00:04]} Kd7 {[%emt 0:00:09]} 44. Ke2 {[%emt 0:00:14]} Ke8 {[%emt 0:01:00]} 45. Kf1 {[%emt 0:01:05]} Kf7 {[%emt 0:00:28]} 46. Ke2 {[%emt 0:00:58]} Ke8 {[%emt 0:00:26]} 47. h4 {[%emt 0:01:27]} Kf7 {[%emt 0:00:25]} 48. Kf1 {[%emt 0:00:05]} Ke8 {[%emt 0:00:45]} 49. Ke2 {[%emt 0:00:08]} Kf7 {[%emt 0:00:04]} 50. Kf1 {[%emt 0:00:03]} Ke8 {[%emt 0:00:05]} 1/2-1/2

[Event "2nd Colonial Open 2021"]
[Site "Sterling"]
[Date "2021.04.03"]
[Round "2.5"]
[White "Yogeshwar Yehamandram Sridhar"]
[Black "Miller, Daniel"]
[Result "0-1"]
[ECO "C28"]
[WhiteElo "1794"]
[BlackElo "2182"]
[Annotator "NA"]
[PlyCount "96"]
[EventDate "2021.04.02"]
[EventType "swiss"]
[EventCountry "USA"]
[SourceTitle "playchess.com"]
[Source "ChessBase"]
[SourceQuality "1"]
[TimeControl "7200+30"]

1. e4 {[%emt 0:00:00]} e5 {[%emt 0:00:00]} 2. Nf3 {[%emt 0:00:00]} Nf6 {[%emt 0:00:00]} 3. Nc3 {[%emt 0:00:51]} Bb4 {[%emt 0:00:00]} 4. Bc4 {[%emt 0:03:56]} O-O {[%emt 0:00:01]} 5. d3 {[%emt 0:01:44]} d5 {[%emt 0:00:06]} 6. exd5 {[%emt 0:00:29]} Nxd5 {[%emt 0:00:08]} 7. Bd2 {[%emt 0:00:37]} Bxc3 {[%emt 0:00:06]} 8. Bxc3 $11 {[%emt 0:00:18]} Nxc3 {[%emt 0:00:07]} 9. bxc3 {[%emt 0:00:03]} Nc6 {[%emt 0:00:49]} 10. h3 {[%emt 0:04:24]} Bf5 {[%emt 0:04:09]} 11. O-O {[%emt 0:07:14]} e4 {[%emt 0:08:30]} 12. dxe4 {[%emt 0:02:47]} Qxd1 {[%emt 0:10:36]} 13. Raxd1 {[%emt 0:01:00]} Bxe4 {[%emt 0:00:07]} 14. Rd7 {[%emt 0:08:39]} Bxf3 {[%emt 0:20:22]} 15. gxf3 {[%emt 0:00:11]} Ne5 {[%emt 0:00:20]} 16. Rxc7 {[%emt 0:00:31]} Rac8 {[%emt 0:00:28]} 17. Rxc8 {[%emt 0:00:43]} Rxc8 {[%emt 0:00:03]} 18. Bb3 {[%emt 0:00:10]} g5 {[%emt 0:07:26]} 19. Rd1 {[%emt 0:18:11]} Kg7 {[%emt 0:02:53]} 20. Kg2 {[%emt 0:02:31]} Rxc3 {[%emt 0:00:26]} 21. Re1 {[%emt 0:01:30]} Ng6 {[%emt 0:05:27]} 22. Re3 {[%emt 0:02:01]} Nh4+ {[%emt 0:00:12]} 23. Kf1 {[%emt 0:01:40]} Rxe3 {[%emt 0:00:05]} 24. fxe3 {[%emt 0:00:01]} Nxf3 {[%emt 0:00:10]} 25. Bd5 {[%emt 0:01:14]} Nd2+ {[%emt 0:02:10]} 26. Ke1 {[%emt 0:01:19]} Nb1 {[%emt 0:00:09]} 27. Bxb7 {[%emt 0:00:28]} Nc3 {[%emt 0:05:03]} 28. a3 {[%emt 0:00:54]} Kf6 {[%emt 0:00:36]} 29. Kd2 {[%emt 0:02:50]} Nb5 {[%emt 0:08:51]} 30. a4 {[%emt 0:02:32]} Nd6 {[%emt 0:00:06]} 31. Bf3 {[%emt 0:05:22]} Nc4+ {[%emt 0:03:27]} 32. Ke2 {[%emt 0:01:46]} a5 {[%emt 0:02:49]} 33. Bd5 {[%emt 0:04:16]} Nb6 {[%emt 0:04:33]} 34. Bc6 {[%emt 0:03:29]} h5 {[%emt 0:00:50]} 35. Kd3 {[%emt 0:03:03]} Ke5 {[%emt 0:00:30]} 36. Be8 {[%emt 0:13:24]} h4 {[%emt 0:00:17]} 37. c4 {[%emt 0:05:45]} f5 {[%emt 0:01:46]} 38. c5 {[%emt 0:01:40]} Nd5 {[%emt 0:00:42]} 39. Ke2 {[%emt 0:03:23]} Nf6 {[%emt 0:08:13]} 40. Bg6 {[%emt 0:04:24]} Ne4 {[%emt 0:00:07]} 41. c6 {[%emt 0:00:55]} Nc3+ {[%emt 0:00:08]} 42. Kf3 {[%emt 0:01:21]} Nxa4 {[%emt 0:00:16]} 43. e4 {[%emt 0:01:05]} f4 {[%emt 0:10:35]} 44. Kg4 {[%emt 0:06:10]} Nb6 {[%emt 0:00:54]} 45. c7 {[%emt 0:06:05]} a4 {[%emt 0:00:29]} 46. Bf7 {[%emt 0:04:36]} a3 {[%emt 0:04:21]} 47. Kf3 {[%emt 0:00:25]} Kd6 {[%emt 0:00:31]} 48. Ba2 {[%emt 0:00:09]} Kxc7 {[%emt 0:00:30]} 0-1

[Event "2nd Colonial Open 2021"]
[Site "Sterling"]
[Date "2021.04.03"]
[Round "2.6"]
[White "Singh, Hersh"]
[Black "Kanli, Alperen"]
[Result "1/2-1/2"]
[ECO "D20"]
[WhiteElo "2080"]
[BlackElo "1911"]
[Annotator "NA"]
[PlyCount "31"]
[EventDate "2021.04.02"]
[EventType "swiss"]
[EventCountry "USA"]
[SourceTitle "playchess.com"]
[Source "ChessBase"]
[SourceQuality "1"]
[TimeControl "7200+30"]

1. d4 {[%emt 0:00:00]} d5 {[%emt 0:00:00]} 2. c4 {[%emt 0:00:00]} dxc4 {[%emt 0:00:00]} 3. e4 {[%emt 0:00:00]} e5 {[%emt 0:00:00]} 4. Nf3 {[%emt 0:00:00]} exd4 {[%emt 0:00:43]} 5. Bxc4 {[%emt 0:00:44]} Nc6 {[%emt 0:01:50]} 6. O-O {[%emt 0:01:16]} Be6 {[%emt 0:00:18]} 7. Bb5 {[%emt 0:01:12]} Bd7 {[%emt 0:01:36]} 8. Bxc6 {[%emt 0:02:19]} Bxc6 {[%emt 0:00:11]} 9. Nxd4 {[%emt 0:00:40]} Bd7 {[%emt 0:01:04]} 10. Qb3 {[%emt 0:21:00]} c5 {[%emt 0:11:23]} 11. Nf5 {[%emt 0:08:19]} Qb6 {[%emt 0:02:00]} 12. Nc3 {[%emt 0:22:50]} O-O-O {[%emt 0:12:47]} 13. Bf4 {[%emt 0:07:59]} Bxf5 {[%emt 0:09:52]} 14. exf5 {[%emt 0:03:39]} Qxb3 {[%emt 0:01:00]} 15. axb3 {[%emt 0:00:03]} a6 {[%emt 0:00:00]} 16. b4 {[%emt 0:20:44]} 1/2-1/2

[Event "2nd Colonial Open 2021"]
[Site "Sterling"]
[Date "2021.04.03"]
[Round "2.8"]
[White "Ye, Chen-Chen"]
[Black "Siamon, David"]
[Result "1/2-1/2"]
[ECO "B15"]
[WhiteElo "1798"]
[BlackElo "1956"]
[Annotator "NA"]
[PlyCount "67"]
[EventDate "2021.04.02"]
[EventType "swiss"]
[EventCountry "USA"]
[SourceTitle "playchess.com"]
[Source "ChessBase"]
[SourceQuality "1"]
[TimeControl "7200+30"]

1. e4 {[%emt 0:00:00]} c6 {[%emt 0:00:00]} 2. d4 {[%emt 0:00:00]} d5 {[%emt 0:00:00]} 3. Nc3 {[%emt 0:00:00]} dxe4 {[%emt 0:00:00]} 4. Nxe4 {[%emt 0:00:00]} Nf6 {[%emt 0:00:03]} 5. Nxf6+ {[%emt 0:00:00]} exf6 {[%emt 0:00:25]} 6. c3 {[%emt 0:00:31]} Bd6 {[%emt 0:00:05]} 7. Bd3 {[%emt 0:00:25]} O-O {[%emt 0:00:07]} 8. Qc2 {[%emt 0:00:22]} Re8+ {[%emt 0:00:02]} 9. Ne2 {[%emt 0:00:09]} h5 {[%emt 0:00:07]} 10. O-O {[%emt 0:00:11]} Be6 {[%emt 0:06:45]} 11. Bf4 {[%emt 0:09:33]} Qc7 {[%emt 0:03:45]} 12. Bxd6 {[%emt 0:00:19]} Qxd6 {[%emt 0:00:01]} 13. Rae1 {[%emt 0:13:33]} Nd7 {[%emt 0:07:53]} 14. f4 {[%emt 0:02:18]} Nb6 {[%emt 0:03:27]} 15. f5 {[%emt 0:00:16]} Bc4 {[%emt 0:02:37]} 16. b3 {[%emt 0:06:47]} Bxd3 {[%emt 0:05:13]} 17. Qxd3 {[%emt 0:00:11]} Nd5 {[%emt 0:19:12]} 18. Ng3 {[%emt 0:10:19]} Rxe1 {[%emt 0:06:06]} 19. Rxe1 {[%emt 0:00:10]} h4 {[%emt 0:01:10]} 20. Nh5 {[%emt 0:00:40]} Nf4 {[%emt 0:05:10]} 21. Nxf4 {[%emt 0:01:11]} Qxf4 {[%emt 0:01:30]} 22. a4 {[%emt 0:07:49]} Rd8 {[%emt 0:02:27]} 23. b4 {[%emt 0:05:09]} a5 {[%emt 0:08:12]} 24. b5 {[%emt 0:23:34]} c5 {[%emt 0:02:11]} 25. Qe4 {[%emt 0:03:38]} Qd2 {[%emt 0:13:57]} 26. Qe3 {[%emt 0:06:34]} Qxe3+ {[%emt 0:01:35]} 27. Rxe3 {[%emt 0:00:16]} cxd4 {[%emt 0:00:02]} 28. Rd3 {[%emt 0:00:05]} Rd5 {[%emt 0:01:28]} 29. Rxd4 {[%emt 0:00:18]} Rxd4 {[%emt 0:12:18]} 30. cxd4 {[%emt 0:00:02]} Kf8 {[%emt 0:00:01]} 31. Kf2 {[%emt 0:00:26]} Ke7 {[%emt 0:00:04]} 32. Ke3 {[%emt 0:00:13]} Kd6 {[%emt 0:00:02]} 33. Ke4 {[%emt 0:00:20]} g6 {[%emt 0:10:31]} 34. g3 {[%emt 0:05:45]} 1/2-1/2

[Event "2nd Colonial Open 2021"]
[Site "Sterling"]
[Date "2021.04.03"]
[Round "2.9"]
[White "Yanayt, Eugene"]
[Black "Dill, James"]
[Result "1-0"]
[ECO "E04"]
[WhiteElo "2079"]
[BlackElo "1823"]
[Annotator "NA"]
[PlyCount "67"]
[EventDate "2021.04.02"]
[EventType "swiss"]
[EventCountry "USA"]
[SourceTitle "playchess.com"]
[Source "ChessBase"]
[SourceQuality "1"]
[TimeControl "7200+30"]

1. d4 {[%emt 0:00:00]} Nf6 {[%emt 0:00:00]} 2. c4 {[%emt 0:00:00]} e6 {[%emt 0:00:00]} 3. Nf3 {[%emt 0:00:00]} d5 {[%emt 0:00:04]} 4. g3 {[%emt 0:00:06]} dxc4 {[%emt 0:00:22]} 5. Bg2 {[%emt 0:00:19]} Nc6 {[%emt 0:00:14]} 6. O-O {[%emt 0:00:18]} Rb8 {[%emt 0:00:34]} 7. Nc3 {[%emt 0:00:26]} b5 {[%emt 0:01:07]} 8. Ne5 {[%emt 0:00:32]} Nxe5 {[%emt 0:01:52]} 9. dxe5 {[%emt 0:00:05]} Ng4 {[%emt 0:06:00]} 10. Qxd8+ {[%emt 0:21:10]} Kxd8 {[%emt 0:00:09]} 11. Rd1+ {[%emt 0:00:09]} Ke7 {[%emt 0:00:19]} 12. Bf4 {[%emt 0:10:11]} Rg8 {[%emt 0:09:23]} 13. Ne4 {[%emt 0:07:22]} Bb7 {[%emt 0:29:10]} 14. Ng5 {[%emt 0:24:33]} Bxg2 {[%emt 0:10:54]} 15. Kxg2 {[%emt 0:00:13]} h6 {[%emt 0:00:53]} 16. Nf3 {[%emt 0:08:53]} g5 {[%emt 0:08:16]} 17. Bd2 {[%emt 0:01:37]} Bg7 {[%emt 0:14:34]} 18. Bb4+ {[%emt 0:00:13]} Ke8 {[%emt 0:00:14]} 19. a4 {[%emt 0:00:42]} Nxe5 {[%emt 0:20:08]} 20. Nd4 {[%emt 0:06:25]} Bf8 {[%emt 0:06:47]} 21. Ba5 {[%emt 0:01:29]} Rb7 {[%emt 0:02:55]} 22. Nxb5 {[%emt 0:02:40]} Nc6 {[%emt 0:02:38]} 23. Bxc7 {[%emt 0:02:29]} a6 {[%emt 0:01:06]} 24. Nd6+ {[%emt 0:06:28]} Bxd6 {[%emt 0:00:08]} 25. Bxd6 {[%emt 0:00:05]} Rxb2 {[%emt 0:02:23]} 26. Rac1 {[%emt 0:01:04]} Ne7 {[%emt 0:02:57]} 27. Rxc4 {[%emt 0:03:22]} f5 {[%emt 0:01:12]} 28. Rc7 {[%emt 0:03:47]} Nd5 {[%emt 0:00:41]} 29. Ra7 {[%emt 0:00:19]} Rb6 {[%emt 0:03:26]} 30. Rc1 {[%emt 0:04:23]} Kd8 {[%emt 0:01:37]} 31. Ra8+ {[%emt 0:02:44]} Kd7 {[%emt 0:00:13]} 32. Rxg8 {[%emt 0:00:08]} Kxd6 {[%emt 0:00:12]} 33. Rgc8 {[%emt 0:02:52]} f4 {[%emt 0:01:37]} 34. a5 {[%emt 0:01:19]} 1-0

[Event "2nd Colonial Open 2021"]
[Site "Sterling"]
[Date "2021.04.04"]
[Round "3.4"]
[White "Altman, Joshua"]
[Black "Singh, Hersh"]
[Result "1/2-1/2"]
[ECO "D36"]
[WhiteElo "1926"]
[BlackElo "2080"]
[Annotator "RC"]
[PlyCount "88"]
[EventDate "2021.04.02"]
[EventType "swiss"]
[EventCountry "USA"]
[SourceTitle "playchess.com"]
[Source "ChessBase"]
[SourceQuality "1"]
[TimeControl "7200+30"]

1. d4 {[%emt 0:01:32]} d5 {[%emt 0:00:00]} 2. c4 {[%emt 0:00:05]} e6 {[%emt 0:00:00]} 3. Nc3 {[%emt 0:00:07]} Nf6 {[%emt 0:00:00]} 4. cxd5 {[%emt 0:00:06]} exd5 {[%emt 0:00:00]} 5. Bg5 {[%emt 0:00:06]} c6 {[%emt 0:00:00]} 6. Qc2 {[%emt 0:00:36]} Be7 {[%emt 0:00:00]} 7. e3 {[%emt 0:00:15]} Nbd7 {[%emt 0:00:00]} 8. Bd3 {[%emt 0:00:32]} Nf8 {[%emt 0:00:00]} 9. Nge2 {[%emt 0:04:06]} Ne6 {[%emt 0:00:04]} 10. Bh4 {[%emt 0:00:22]} g6 {[%emt 0:00:05]} 11. O-O {[%emt 0:00:44]} O-O {[%emt 0:00:04]} 12. f3 {[%emt 0:03:29]} b6 {[%emt 0:00:06]} 13. Rad1 {[%emt 0:04:52]} Bb7 {[%emt 0:00:05]} 14. Kh1 {[%emt 0:04:03]} Nh5 {[%emt 0:00:24]} 15. Bf2 {[%emt 0:16:09]} f5 {[%emt 0:01:58]} 16. Nc1 {[%emt 0:17:29]} Rc8 {[%emt 0:09:09]} 17. Be2 {[%emt 0:11:09]} Nf6 {[%emt 0:14:45]} 18. Nd3 {[%emt 0:13:57]} c5 {[%emt 0:06:36]} 19. Qb1 {[%emt 0:25:45]} Qe8 {[%emt 0:14:57]} 20. Ne5 {[%emt 0:11:37]} Bd6 {[%emt 0:05:19]} 21. f4 {[%emt 0:02:07]} cxd4 {[%emt 0:06:18]} 22. Nb5 {[%emt 0:03:30]} Bb8 {[%emt 0:03:29]} 23. Nxd4 {[%emt 0:01:14]} Bxe5 {[%emt 0:04:02]} 24. fxe5 {[%emt 0:00:37]} Ne4 {[%emt 0:00:04]} 25. Bd3 {[%emt 0:02:27]} N6c5 {[%emt 0:01:19]} 26. Nf3 {[%emt 0:04:38]} Qe6 {[%emt 0:08:38]} 27. Bg3 {[%emt 0:00:52]} Nxg3+ {[%emt 0:01:36]} 28. hxg3 {[%emt 0:00:03]} Ne4 {[%emt 0:00:02]} 29. Bxe4 {[%emt 0:01:06]} fxe4 {[%emt 0:04:08]} 30. Nd4 {[%emt 0:00:10]} Qxe5 {[%emt 0:00:16]} 31. Rxf8+ {[%emt 0:00:32]} Rxf8 {[%emt 0:00:02]} 32. Rf1 {[%emt 0:00:33]} Qxg3 {[%emt 0:13:43]} 33. Rxf8+ {[%emt 0:00:34]} Kxf8 {[%emt 0:00:01]} 34. Qf1+ {[%emt 0:00:38]} Ke7 {[%emt 0:00:32]} 35. Qc1 {[%emt 0:00:25]} Qe5 {[%emt 0:01:30]} 36. Qc3 {[%emt 0:00:22]} Kf7 {[%emt 0:00:46]} 37. Qc2 {[%emt 0:00:52]} Kg7 {[%emt 0:01:35]} 38. Qa4 {[%emt 0:00:36]} Kh6 {[%emt 0:13:59]} 39. Qxa7 {[%emt 0:00:23]} Qc7 {[%emt 0:03:54]} 40. Ne6 {[%emt 0:00:34]} Qc6 {[%emt 0:01:52]} 41. Nd4 {[%emt 0:00:36]} Qc1+ {[%emt 0:02:45]} 42. Kh2 {[%emt 0:00:03]} Qxe3 {[%emt 0:00:16]} 43. Ne6 {[%emt 0:00:58]} Qf2 {[%emt 0:14:51]} 44. Qxb7 {[%emt 0:00:06]} Qh4+ {[%emt 0:00:44]} 1/2-1/2